fUSD/lending_fUSD_20240427
["ID","MTS","AMOUNT","RATE_DAILY","PERIOD"]
[323763191,1714254644240,-284.99,0.00014,2]
[323763192,1714254644250,-284.99,0.00014,2]
[323763193,1714254644260,-284.99,0.00014,2]
[323763194,1714254644270,-284.99,0.00014,2]
[323763195,1714254644280,-284.99,0.00014,2]
[323763196,1714254644290,-284.99,0.00014,2]
[323763197,1714254644299,-284.99,0.00014,2]
[323763198,1714254644309,-284.99,0.00014,2]
[323763199,1714254644318,-284.99,0.00014,2]
[323763200,1714254644327,-284.99,0.00014,2]
[323763201,1714254644491,-284.99,0.00014,2]
[323763202,1714254644501,-284.99,0.00014,2]
[323763203,1714254644511,-284.99,0.00014,2]
[323763204,1714254644520,-284.99,0.00014,2]
[323763205,1714254644530,-284.99,0.00014,2]
[323763206,1714254644540,-284.99,0.00014,2]
[323763207,1714254644549,-284.99,0.00014,2]
[323763208,1714254644558,-284.99,0.00014,2]
[323763209,1714254644568,-284.99,0.00014,2]
[323763210,1714254644578,-284.99,0.00014,2]
[323763211,1714254644587,-284.99,0.00014,2]
[323763212,1714254644597,-284.99,0.00014,2]
[323763213,1714254644606,-4846.53990595,0.00014033,2]
[323763214,1714254644616,-1002.19255514,0.00014126,2]
[323763215,1714254644625,-1369.04,0.00014166,2]
[323763216,1714254644634,-1638.61,0.00014352,2]
[323763217,1714254644643,-928.0,0.00014383,2]
[323763218,1714254644654,-818.86,0.00014385,2]
[323763219,1714254644664,-910.83,0.00014385,2]
[323763220,1714254644673,-910.83,0.00014385,2]
[323763221,1714254644683,-910.83,0.00014385,2]
[323763222,1714254644692,-235.08,0.00014412,2]
[323763223,1714254644701,-1306.0,0.000145,3]
[323763224,1714254644710,-733.0,0.000145,2]
[323763225,1714254644720,-607.3,0.00014577,7]
[323763226,1714254644731,-802.54032115,0.0001468,2]
[323763227,1714254644741,-373.04,0.0001474,2]
[323763228,1714254644750,-1003.28,0.0001479,2]
[323763229,1714254644759,-478.68125376,0.000149,2]
[323763230,1714254644768,-187.2174953,0.000149,2]
[323763231,1714254644778,-12870.91290962,0.000149,2]
[323763232,1714254644788,-418.94,0.00014954,2]
[323763233,1714254644798,-150.0,0.00014954,2]
[323763234,1714254644808,-150.0,0.00014954,2]
[323763235,1714254644818,-248.84,0.00014967,2]
[323763236,1714254644827,-200.0,0.00015,2]
[323763237,1714254644837,-159446.40830138,0.00015,2]
[323763238,1714254644846,-1185.24848846,0.00015,2]
[323763239,1714254644856,-155.0,0.00015,2]
[323763240,1714254644865,-8583.46002936,0.00015,2]
[323763241,1714254644874,-68390.7238778,0.00015,2]
[323763242,1714254644884,-155.0,0.00015,2]
[323763243,1714254644894,-2000.0,0.00015,2]
[323763244,1714254644904,-483.0,0.00015,2]
[323763245,1714254644915,-483.0,0.00015,2]
[323763246,1714254644927,-3313.7047215,0.00015,2]
[323763247,1714254644936,-2000.0,0.00015,2]
[323763248,1714254644945,-160.0,0.00015,2]
[323763249,1714254644953,-9779.0,0.00015,2]
[323763250,1714254644963,-483.0,0.00015,2]
[323763251,1714254644974,-2000.0,0.00015,2]
[323763252,1714254644984,-2850.0,0.00015,3]
[323763253,1714254644996,-733.0,0.00015,2]
[323763254,1714254645007,-1416.0,0.00015,2]
[323763255,1714254645017,-151.0,0.00015,2]
[323763256,1714254645026,-151.791476,0.00015,2]
[323763257,1714254645035,-151.0,0.00015,2]
[323763258,1714254645044,-151.0,0.00015,2]
[323763259,1714254645053,-151.511468,0.00015,2]
[323763260,1714254645063,-151.0,0.00015,2]
[323763261,1714254645073,-151.0,0.00015,2]
[323763262,1714254645082,-151.0,0.00015,2]
[323763263,1714254645091,-151.0,0.00015,2]
[323763264,1714254645101,-151.0,0.00015,2]
[323763265,1714254645110,-151.0,0.00015,2]
[323763266,1714254645120,-151.0,0.00015,2]
[323763267,1714254645130,-151.161276,0.00015,2]
[323763268,1714254645140,-151.0,0.00015,2]
[323763269,1714254645149,-152.833298,0.00015,2]
[323763270,1714254645159,-151.0,0.00015,2]
[323763271,1714254645170,-151.0,0.00015,2]
[323763272,1714254645179,-151.0,0.00015,2]
[323763273,1714254645189,-151.807267,0.00015,2]
[323763274,1714254645199,-292.77411,0.00015,2]
[323763275,1714254645209,-151.0,0.00015,2]
[323763276,1714254645219,-151.0,0.00015,2]
[323763277,1714254645230,-151.526528,0.00015,2]
[323763278,1714254645241,-151.0,0.00015,2]
[323763279,1714254645250,-151.0,0.00015,2]
[323763280,1714254645259,-181.051509,0.00015,2]
[323763281,1714254645269,-151.0,0.00015,2]
[323763282,1714254645277,-151.0,0.00015,2]
[323763283,1714254645286,-151.370645,0.00015,2]
[323763284,1714254645295,-151.139412,0.00015,2]
[323763285,1714254645307,-151.0,0.00015,2]
[323763286,1714254645317,-152.831372,0.00015,2]
[323763287,1714254645327,-151.0,0.00015,2]
[323763288,1714254645336,-151.30987,0.00015,2]
[323763289,1714254645346,-172.692846,0.00015,2]
[323763290,1714254645356,-152.180857,0.00015,2]
[323763291,1714254645367,-151.0,0.00015,2]
[323763292,1714254645377,-154.394752,0.00015,2]
[323763293,1714254645388,-1003.28,0.00015,2]
[323763294,1714254645398,-151.489965,0.00015,2]
[323763295,1714254645407,-151.0,0.00015,2]
[323763296,1714254645416,-497.516428,0.00015,2]
[323763297,1714254645425,-497.516428,0.00015,2]
[323763298,1714254645435,-151.0,0.00015,2]
[323763299,1714254645444,-151.0,0.00015,2]
[323763300,1714254645454,-151.0,0.00015,2]
[323763301,1714254645465,-151.0,0.00015,2]
[323763302,1714254645474,-151.125541,0.00015,2]
[323763303,1714254645483,-152.523587,0.00015,2]
[323763304,1714254645492,-151.0,0.00015,2]
[323763305,1714254645501,-318.06,0.00015,2]
[323763306,1714254645510,-151.138748,0.00015,2]
[323763307,1714254645520,-151.0,0.00015,2]
[323763308,1714254645529,-1134.841315,0.00015,2]
[323763309,1714254645538,-151.0,0.00015,2]
[323763310,1714254645546,-151.0,0.00015,2]
[323763311,1714254645555,-1134.841315,0.00015,2]
[323763312,1714254645564,-153.502457,0.00015,2]
[323763313,1714254645574,-151.0,0.00015,2]
[323763315,1714254645583,-166.940724,0.00015,2]
[323763317,1714254645592,-166.940724,0.00015,2]
[323763319,1714254645601,-151.0,0.00015,2]
[323763321,1714254645610,-290.71228,0.00015,2]
[323763323,1714254645619,-151.0,0.00015,2]
[323763325,1714254645629,-928.0,0.00015068,2]
[323763327,1714254645638,-300.0,0.00015068,2]
[323763329,1714254645647,-1000.0,0.00015068,2]
[323763331,1714254645656,-860.0,0.00015083,2]
[323763333,1714254645665,-701.0,0.00015083,2]
[323763335,1714254645675,-1000.0,0.00015112,2]
[323763337,1714254645684,-1000.0,0.00015156,2]
[323763339,1714254645693,-4846.53990595,0.00015165,2]
[323763341,1714254645703,-1000.0,0.000152,2]
[323763343,1714254645712,-860.0,0.00015239,2]
[323763344,1714254645721,-701.0,0.00015239,2]
[323763345,1714254645732,-1000.0,0.00015244,2]
[323763346,1714254645744,-153.05,0.00015271,2]
[323763347,1714254645755,-1000.0,0.00015288,2]
[323763348,1714254645764,-1000.0,0.00015332,2]
[323763349,1714254645773,-1000.0,0.00015375,2]
[323763350,1714254645782,-278681.68857943,0.0001539,2]
[323763351,1714254645792,-860.0,0.00015394,2]
[323763352,1714254645801,-701.0,0.00015394,2]
[323763353,1714254645813,-1000.0,0.00015419,2]
[323763354,1714254645822,-1000.0,0.00015463,2]
[323763355,1714254645831,-155.0,0.000155,2]
[323763356,1714254645840,-733.0,0.000155,3]
[323763357,1714254645849,-150.0,0.000155,2]
[323763358,1714254645859,-150.0,0.000155,2]
[323763359,1714254645868,-1000.0,0.00015507,2]
[323763360,1714254645877,-860.0,0.0001555,2]
[323763361,1714254645889,-606.3786669,0.0001555,2]
[323763362,1714254645899,-1210.43448371,0.0001555,2]
[323763363,1714254645909,-701.0,0.0001555,2]
[323763364,1714254645918,-1492.91055844,0.0001555,2]
[323763365,1714254645928,-1000.0,0.00015551,2]
[323763366,1714254645937,-802.54032115,0.0001557,2]
[323763367,1714254645947,-1000.0,0.00015595,2]
[323763368,1714254645957,-155.18,0.00015616,10]
[323763369,1714254645967,-1000.0,0.00015638,2]
[323763370,1714254645978,-1000.0,0.00015682,2]
[323763371,1714254645989,-1003.28,0.00015685,2]
[323763372,1714254645998,-860.0,0.00015705,2]
[323763373,1714254646007,-701.0,0.00015705,2]
[323763374,1714254646016,-1000.0,0.00015726,2]
[323763375,1714254646025,-928.0,0.00015753,2]
[323763376,1714254646034,-1000.0,0.0001577,2]
[323763377,1714254646043,-1000.0,0.00015814,2]
[323763378,1714254646052,-150.0,0.00015814,2]
[323763379,1714254646061,-167.0,0.00015831,2]
[323763380,1714254646070,-235.08,0.00015853,2]
[323763382,1714254646079,-1000.0,0.00015858,2]
[323763384,1714254646089,-860.0,0.00015861,2]
[323763386,1714254646098,-701.0,0.00015861,2]
[323763388,1714254646107,-32915.13660079,0.0001588,2]
[323763390,1714254646117,-1003.28,0.00015895,2]
[323763391,1714254646126,-1000.0,0.00015901,2]
[323763392,1714254646135,-318.06,0.0001593,2]
[323763393,1714254646144,-1000.0,0.00015945,2]
[323763394,1714254646153,-1000.0,0.00015989,2]
[323763395,1714254646162,-2007.813986,0.00016,2]
[323763396,1714254646171,-2000.0,0.00016,2]
[323763397,1714254646183,-2000.0,0.00016,2]
[323763398,1714254646192,-2000.0,0.00016,2]
[323763399,1714254646202,-733.0,0.00016,3]
[323763400,1714254646211,-2000.0,0.00016,2]
[323763401,1714254646221,-150.0,0.00016,2]
[323763402,1714254646232,-150.0,0.00016,2]
[323763403,1714254646241,-2000.0,0.0001601,2]
[323763404,1714254646250,-860.0,0.00016016,2]
[323763405,1714254646259,-701.0,0.00016016,2]
[323763406,1714254646268,-2000.0,0.0001602,2]
[323763407,1714254646277,-2000.0,0.0001603,2]
[323763408,1714254646286,-1000.0,0.00016033,2]
[323763409,1714254646295,-2000.0,0.0001604,2]
[323763410,1714254646304,-2000.0,0.0001605,2]
[323763411,1714254646314,-2000.0,0.0001606,2]
[323763412,1714254646323,-2000.0,0.0001607,2]
[323763413,1714254646332,-1000.0,0.00016077,2]
[323763414,1714254646341,-373.04,0.0001608,2]
[323763415,1714254646350,-2145.013585,0.0001608,2]
[323763416,1714254646359,-5540.39,0.00016116,2]
[323763417,1714254646368,-1000.0,0.00016121,2]
[323763418,1714254646377,-1000.0,0.00016164,2]
[323763419,1714254646386,-1000.0,0.00016208,2]
[323763420,1714254646396,-1000.0,0.00016252,2]
[323763421,1714254646405,-1000.0,0.00016296,2]
[323763422,1714254646414,-4846.53990595,0.00016298,2]
[323763423,1714254646422,-158.93910972,0.00016313,2]
[323763424,1714254646432,-1000.0,0.0001634,2]
[323763425,1714254646441,-167.0,0.00016354,2]
[323763426,1714254646450,-1000.0,0.00016384,2]
[323763427,1714254646459,-1000.0,0.00016427,2]
[323763428,1714254646469,-1369.04,0.0001643,2]
[323763429,1714254646479,-928.0,0.00016438,2]
[323763430,1714254646488,-200.0,0.00016438,2]
[323763431,1714254646498,-300.0,0.00016438,2]
[323763432,1714254646508,-3769.35,0.00016438,2]
[323763433,1714254646519,-802.54032115,0.00016459,2]
[323763434,1714254646530,-3000.0,0.00016463,7]
[323763435,1714254646540,-248.84,0.00016463,2]
[323763436,1714254646549,-1000.0,0.00016471,2]
[323763437,1714254646559,-1224.09833319,0.000165,2]
[323763438,1714254646568,-733.0,0.000165,4]
[323763439,1714254646578,-150.0,0.000165,2]
[323763440,1714254646587,-150.0,0.000165,2]
[323763441,1714254646598,-1000.0,0.00016515,2]
[323763442,1714254646607,-1000.0,0.00016559,2]
[323763443,1714254646617,-1003.28,0.0001658,2]
[323763444,1714254646626,-164.40558416,0.000166,2]
[323763445,1714254646635,-1000.0,0.00016603,2]
[323763446,1714254646644,-1000.0,0.00016647,2]
[323763447,1714254646654,-1000.0,0.0001669,2]
[323763448,1714254646664,-178.66,0.00016712,2]
[323763449,1714254646674,-150.47,0.00016715,2]
[323763450,1714254646684,-1000.0,0.00016734,2]
[323763451,1714254646694,-1000.0,0.00016778,2]
[323763452,1714254646704,-1003.28,0.0001679,2]
[323763453,1714254646713,-1000.0,0.00016822,2]
[323763454,1714254646724,-318.06,0.0001686,2]
[323763455,1714254646735,-1000.0,0.00016866,2]
[323763456,1714254646745,-167.0,0.00016876,2]
[323763457,1714254646755,-1000.0,0.0001691,2]
[323763458,1714254646764,-1000.0,0.00016953,2]
[323763459,1714254646773,-1000.0,0.00016997,2]
[323763460,1714254646782,-2000.0,0.00017,2]
[323763461,1714254646792,-2076.83891925,0.00017,2]
[323763462,1714254646802,-18997.45267191,0.00017,2]
[323763463,1714254646954,-2000.0,0.00017,2]
[323763464,1714254646963,-2900.0,0.00017,3]
[323763465,1714254646973,-733.0,0.00017,4]
[323763466,1714254646983,-1561.8,0.00017,2]
[323763467,1714254646994,-150.0,0.00017,2]
[323763468,1714254647003,-150.0,0.00017,2]
[323763469,1714254647013,-1000.0,0.00017041,2]
[323763470,1714254647024,-1000.0,0.00017085,2]
[323763471,1714254647035,-1638.61,0.00017092,2]
[323763472,1714254647044,-928.0,0.00017123,2]
[323763473,1714254647053,-1000.0,0.00017129,2]
[323763474,1714254647064,-153.81143221,0.00017167,2]
[323763475,1714254647074,-1000.0,0.00017173,2]
[323763476,1714254647085,-1000.0,0.00017216,2]
[323763477,1714254647095,-1542.20494656,0.0001726,2]
[323763478,1714254647105,-235.08,0.00017294,2]
[323763479,1714254647114,-802.54032115,0.00017349,2]
[323763480,1714254647123,-167.0,0.00017399,2]
[323763481,1714254647134,-151.0,0.000174,2]
[323763482,1714254647145,-151.0,0.000174,2]
[323763483,1714254647154,-151.0,0.000174,2]
[323763484,1714254647163,-151.0,0.000174,2]
[323763485,1714254647172,-151.0,0.000174,2]
[323763486,1714254647182,-151.0,0.000174,2]
[323763487,1714254647191,-151.0,0.000174,2]
[323763488,1714254647200,-151.0,0.000174,2]
[323763489,1714254647210,-151.0,0.000174,2]
[323763490,1714254647219,-6911.78407631,0.000174,2]
[323763491,1714254647237,-808.4746707,0.000174,2]
[323763492,1714254647250,-2009.13125299,0.000174,2]
[323763493,1714254647259,-1315.86874701,0.000174,2]
[323763494,1714254647281,-8413.52125299,0.000174,2]
[323763495,1714254647290,-9729.39,0.000174,2]
[323763496,1714254647300,-9729.39,0.000174,2]
[323763497,1714254647310,-9729.39,0.000174,2]
[323763498,1714254647319,-9729.39,0.000174,2]
[323763499,1714254647328,-9729.39,0.000174,2]
[323763500,1714254647338,-9729.39,0.000174,2]
[323763501,1714254647347,-9729.39,0.000174,2]
[323763502,1714254647356,-9729.39,0.000174,2]
[323763503,1714254647366,-9729.39,0.000174,2]
[323763504,1714254647376,-9729.39,0.000174,2]
[323763505,1714254647386,-9729.39,0.000174,2]
[323763506,1714254647396,-9729.39,0.000174,2]
[323763507,1714254647406,-9729.39,0.000174,2]
[323763508,1714254647415,-9729.39,0.000174,2]
[323763509,1714254647425,-9729.39,0.000174,2]
[323763510,1714254647435,-9729.39,0.000174,2]
[323763511,1714254647445,-9729.39,0.000174,2]
[323763512,1714254647455,-9729.39,0.000174,2]
[323763513,1714254647464,-151.0,0.000174,2]
[323763514,1714254647474,-151.0,0.000174,2]
[323763515,1714254647484,-151.0,0.000174,2]
[323763516,1714254647493,-151.0,0.000174,2]
[323763517,1714254647503,-151.0,0.000174,2]
[323763518,1714254647513,-151.0,0.000174,2]
[323763519,1714254647524,-497.516428,0.000174,2]
[323763520,1714254647533,-497.516428,0.000174,2]
[323763521,1714254647542,-151.0,0.000174,2]
[323763522,1714254647553,-151.0,0.000174,2]
[323763523,1714254647564,-151.0,0.000174,2]
[323763524,1714254647573,-1134.841315,0.000174,2]
[323763525,1714254647583,-1134.841315,0.000174,2]
[323763526,1714254647592,-151.0,0.000174,2]
[323763527,1714254647601,-166.940724,0.000174,2]
[323763528,1714254647611,-166.940724,0.000174,2]
[323763529,1714254647620,-152.76925,0.000174,2]
[323763530,1714254647629,-4846.53990595,0.0001743,2]
[323763531,1714254647639,-500.0,0.0001747,2]
[323763532,1714254647648,-450.0,0.0001747,2]
[323763533,1714254647658,-1003.28,0.00017475,2]
[323763534,1714254647667,-302.0449584,0.00017488,2]
[323763535,1714254647676,-733.0,0.000175,5]
[323763536,1714254647685,-2500.0,0.000175,2]
[323763537,1714254647694,-150.0,0.000175,2]
[323763538,1714254647704,-150.0,0.000175,2]
[323763539,1714254647714,-4224.3147029,0.000175,14]
[323763540,1714254647722,-150.39209227,0.00017615,2]
[323763541,1714254647732,-150.39209227,0.00017655,2]
[323763542,1714254647741,-1003.28,0.00017685,2]
[323763543,1714254647750,-318.06,0.0001779,2]
[323763544,1714254647760,-928.0,0.00017808,2]
[323763545,1714254647770,-2769.36568388,0.0001781,2]
[323763546,1714254647779,-2769.36568388,0.0001781,2]
[323763547,1714254647789,-2769.36568388,0.0001781,2]
[323763548,1714254647799,-2769.36568388,0.0001781,2]
[323763549,1714254647809,-2769.36568388,0.0001781,2]
[323763550,1714254647819,-2769.36568388,0.0001781,2]
[323763551,1714254647829,-2769.36568388,0.0001781,2]
[323763552,1714254647839,-2769.36568388,0.0001781,2]
[323763553,1714254647850,-2769.36568388,0.0001781,2]
[323763554,1714254647860,-2769.36568388,0.0001781,2]
[323763555,1714254647870,-2769.36568388,0.0001781,2]
[323763556,1714254647879,-2769.36568388,0.0001781,2]
[323763557,1714254647890,-2769.36568388,0.0001781,2]
[323763558,1714254647900,-2769.36568388,0.0001781,2]
[323763559,1714254647909,-2769.36568388,0.0001781,2]
[323763560,1714254647918,-2769.36568388,0.0001781,2]
[323763561,1714254647927,-2769.36568388,0.0001781,2]
[323763562,1714254647936,-2769.36568388,0.0001781,2]
[323763563,1714254647946,-2769.36568388,0.0001781,2]
[323763564,1714254647955,-2500.44349286,0.0001781,2]
[323763565,1714254647968,-269.41650714,0.0001781,2]
[323763566,1714254647977,-38.91536077,0.0001781,2]
[323763567,1714254648019,-769.34473658,0.0001781,2]
[323763568,1714254648042,-252.14820422,0.0001781,2]
[323763569,1714254648051,-758.35179828,0.0001781,2]
[323763570,1714254648062,-302.05650329,0.0001781,2]
[323763571,1714254648072,-730.53314458,0.0001781,2]
[323763572,1714254648759,-155.0,0.000109,2]
[323763573,1714254648769,-300.38795621,0.00012899,2]
[323763574,1714254648789,-644.70431179,0.00012899,2]
[323763575,1714254648860,-1065.406732,0.00012899,2]
[323763576,1714254648869,-1915.22042647,0.000129,2]
[323763577,1714254649719,-8084.77957353,0.000129,2]
[323763578,1714254649729,-4677.48558414,0.00012999,2]
[323763579,1714254649843,-2314.76,0.00012999,2]
[323763580,1714254649879,-350.71525655,0.00012999,2]
[323763581,1714254649890,-527.20251454,0.00013999,2]
[323763582,1714254649899,-284.99,0.00014,2]
[323763583,1714254649908,-284.99,0.00014,2]
[323763584,1714254649917,-284.99,0.00014,2]
[323763585,1714254649927,-284.99,0.00014,2]
[323763586,1714254649936,-284.99,0.00014,2]
[323763587,1714254649945,-183.99983585,0.00014,2]
[323763588,1714254649957,-100.99016415,0.00014,2]
[323763589,1714254649966,-284.99,0.00014,2]
[323763590,1714254649977,-105.9418897,0.00014,2]
[323763592,1714255490986,155.18,0.0001063,10]
[323763593,1714255554936,1182.82,8.39e-05,2]
[323763614,1714255831837,-1242.50224029,8.552e-05,2]
[323763616,1714255831847,-234.44241033,8.553e-05,2]
[323763617,1714255831893,-289.7561683,8.553e-05,2]
[323763618,1714255831903,-2322.6580486,8.553e-05,2]
[323763619,1714255831912,-968.0068632,8.554e-05,2]
[323763620,1714255831921,-192.83099194,8.555e-05,2]
[323763621,1714255831930,-159.42,8.581e-05,2]
[323763622,1714255831940,-745.808244,0.00010279,2]
[323763623,1714255831949,-150.0,0.00010331,2]
[323763624,1714255831958,-2928.02726016,0.00010332,2]
[323763625,1714255831969,-1933.2137905,0.00010332,2]
[323763626,1714255831998,-293.43812873,0.00010332,2]
[323763627,1714255832022,-256.90979463,0.00010332,2]
[323763628,1714255832033,-709.67020212,0.00010332,2]
[323763643,1714255838089,-1113.46114593,0.00010332,2]
[323763644,1714255838101,-443.83778674,0.00010332,2]
[323763645,1714255838114,-1984.72189119,0.00010332,2]
[323763646,1714255838123,-250.0,0.00010398,2]
[323763647,1714255838133,-156.65,0.00010565,2]
[323763648,1714255838142,-711.29,0.00010607,2]
[323763649,1714255838152,-1116.74767937,0.00010653,2]
[323763650,1714255838164,-66.07232063,0.00010653,2]
[323763651,1714255838173,-166.95,0.00010826,2]
[323763652,1714255838182,-155.0,0.000109,2]
[323763653,1714255838193,-667.0,0.00010959,3]
[323763654,1714255838203,-150.99,0.0001096,2]
[323763655,1714255838213,-156.65,0.00011116,2]
[323763656,1714255838223,-3220.73767937,0.00011268,2]
[323763657,1714255838235,-580.68046995,0.00011268,2]
[323763658,1714255838246,-725.78765068,0.00011268,2]
[323763659,1714255838256,-88.89734432,0.00011365,2]
[323763668,1714255838362,-121.10265568,0.00011365,2]
[323763672,1714255838371,-317.01746459,0.00011366,2]
[323763674,1714255838380,-3082.54384098,0.00011368,2]
[323763679,1714255838402,-384615.43218256,0.00011368,2]
[323763683,1714255838413,-292110.65395157,0.00011368,2]
[323763684,1714255838422,-264.34908719,0.0001152,2]
[323763687,1714255838432,-151.63,0.0001162,2]
[323763690,1714255838440,-151.63,0.0001163,2]
[323763693,1714255838449,-151.63,0.0001164,2]
[323763695,1714255838458,-151.63,0.00011649,2]
[323763697,1714255838467,-151.63,0.00011659,2]
[323763698,1714255838475,-151.63,0.00011669,2]
[323763699,1714255838484,-151.63,0.00011678,2]
[323763700,1714255838493,-328.94,0.00011771,2]
[323763701,1714255838503,-1600.12345678,0.00012,3]
[323763702,1714255838511,-166.49,0.00012012,2]
[323763703,1714255838520,-155.0,0.00012598,2]
[323763704,1714255838529,-202.20660029,0.00012799,2]
[323763705,1714255838538,-156.501,0.00012897,2]
[323763706,1714255838547,-40044.6051,0.00012899,2]
[323763707,1714255838555,-100000.0,0.00012899,2]
[323763708,1714255838564,-500.0,0.000129,2]
[323763709,1714255838573,-1000.0,0.000129,2]
[323763711,1714255838583,-2827.14827848,0.000129,2]
[323763712,1714255838592,-1182.82,0.00012917,2]
[323763714,1714255838601,-2220.0,0.0001299,2]
[323763716,1714255838611,-404.84019518,0.00012998,2]
[323763717,1714255838620,-155.39161747,0.00012998,2]
[323763718,1714255838629,-155.0,0.00012998,2]
[323763719,1714255838639,-205.00619139,0.00012998,2]
[323763720,1714255838648,-989.90938697,0.00012998,2]
[323763721,1714255838657,-210.40439846,0.00012999,2]
[323763722,1714255838666,-873.32290242,0.00012999,2]
[323763723,1714255838675,-559.09735674,0.00012999,2]
[323763724,1714255838684,-2517461.55492557,0.00013,2]
[323763725,1714255838696,-112274.76776354,0.00013,2]
[323763726,1714255838715,-1728.72368233,0.00013,2]
[323763727,1714255838726,-3572.60952,0.00013,2]
[323763728,1714255838738,-525.201235,0.00013,2]
[323763729,1714255838750,-657.76259654,0.00013,2]
[323763730,1714255838784,-6146.64666196,0.00013,2]
[323763731,1714255840061,-150.99,0.00011116,2]
[323763732,1714255840071,-142.71,0.00013,2]
[323763733,1714255840083,-35968.62858074,0.00013,2]
[323763734,1714255840118,-2232.98155094,0.00013,2]
[323763735,1714255840129,-544.95844101,0.00013,2]
[323763736,1714255840141,-574.90597193,0.00013,2]
[323763737,1714255840154,-1227.79854319,0.00013,2]
[323763738,1714255840167,-10000.0,0.00013,2]
[323763739,1714255840180,-6380.5,0.00013,2]
[323763740,1714255840192,-338.79383807,0.00013,2]
[323763741,1714255840208,-456.42,0.00013,2]
[323763742,1714255840342,-15383.4283066,0.00013,2]
[323763743,1714255840353,-9102.7803848,0.00013,2]
[323763795,1714255842975,-3786.11949169,0.00013,2]
[323763801,1714255843034,-10865.30310162,0.00013,2]
[323763802,1714255843167,-62132.86657658,0.00013,2]
[323763803,1714255843176,-417.90886388,0.00013,2]
[323763804,1714255843186,-2000.0,0.00013,2]
[323763805,1714255843195,-2000.0,0.00013,2]
[323763806,1714255843206,-864076.9307025,0.00013,2]
[323763821,1714255845868,-386.34527195,0.00012999,2]
[323763826,1714255845924,-358.82702855,0.00012999,2]
[323763828,1714255845935,-1574.49155718,0.00012999,2]
[323763830,1714255845945,-967.30617916,0.00012999,2]
[323763832,1714255845954,-83785.61405297,0.00013,2]
[323763837,1714255846014,-36893.02821,0.00013,2]
[323763839,1714255846027,-61249.755,0.00013,2]
[323763842,1714255846042,-1646.45751293,0.00013,2]
[323763843,1714255846147,-1687.36407221,0.00013,2]
[323763863,1714256664529,8969.444511,0.000251,120]
[323763976,1714257032431,-408.60896828,8.895e-05,2]
[323763978,1714257032440,-167.43493362,8.896e-05,2]
[323763980,1714257032449,-156.28,8.897e-05,2]
[323763981,1714257032458,-1118.76,9.581e-05,2]
[323763983,1714257032473,-155.0,0.000109,2]
[323763985,1714257032483,-872.86053366,0.00011,2]
[323763988,1714257032493,-624.65241283,0.00011112,2]
[323763989,1714257032503,-749.69050462,0.00011379,2]
[323763992,1714257032516,-595.550516,0.00011379,2]
[323763994,1714257032527,-381.16897938,0.00011379,2]
[323763996,1714257032537,-150.0,0.0001138,2]
[323763998,1714257032547,-150.0,0.0001138,2]
[323764000,1714257032559,-238.15102108,0.00011381,2]
[323764001,1714257032570,-630.85,0.00011381,2]
[323764002,1714257032581,-13125.53380091,0.00011381,2]
[323764003,1714257032604,-9895.46517801,0.00011381,2]